bitfinex/quotes_SOLUSD_20240624
["timestamp","ask_amount","ask_price","bid_price","bid_amount"]
[1719260744751,7.8946,126.67,126.57,7.9007]
[1719260744951,14.25685071,126.67,126.57,7.9007]
[1719260745177,14.25685071,126.67,126.58,0.17]
[1719260745851,14.25685071,126.67,126.58,0.34]
[1719260746554,6.36225071,126.67,126.58,8.24]
[1719260746853,8.2419323,126.68,126.58,0.34]
[1719260747362,7.8947,126.67,126.58,0.34]
[1719260747869,7.8957,126.65,126.56,25.8798]
[1719260748079,7.8957,126.65,126.56,33.7811]
[1719260748251,7.8952,126.66,126.57,0.17]
[1719260748453,7.8952,126.66,126.57,8.0707]
[1719260748661,7.8946,126.67,126.57,8.0707]
[1719260749355,7.8946,126.67,126.58,8.0701]
[1719260749559,22.52804529,126.68,126.58,8.0701]
[1719260750980,7.8945,126.67,126.58,0.17]
[1719260751277,7.8955,126.66,126.57,0.17]
[1719260751452,7.8955,126.66,126.56,33.7811]
[1719260751852,7.8958,126.65,126.56,25.8798]
[1719260752070,7.8952,126.66,126.56,33.781]
[1719260752877,7.8947,126.67,126.57,8.0703]
[1719260753174,14.63394529,126.68,126.58,8.07]
[1719260753175,22.52804529,126.68,126.58,8.07]
[1719260753385,22.52804529,126.68,126.59,0.17]
[1719260753386,14.63394529,126.68,126.59,0.17]
[1719260753555,22.52784529,126.68,126.59,0.17]
[1719260754789,22.52784529,126.68,126.59,8.0694]
[1719260754967,22.52784529,126.68,126.61,0.1418245]
[1719260755565,8.2419323,126.68,126.62,21.2442]
[1719260756389,39.252,126.71,126.62,21.2442]
[1719260756560,37.7986628,126.71,126.62,29.1418]
[1719260756761,26.96,126.7,126.62,21.2442]
[1719260757386,34.8527,126.7,126.62,21.2442]
[1719260757759,26.96,126.7,126.62,21.2442]
[1719260759778,26.96,126.7,126.62,40.988]
[1719260759988,35.20660333,126.72,126.63,0.34]
[1719260760168,26.96,126.72,126.63,0.34]
[1719260760493,26.96,126.72,126.62,21.2442]
[1719260760665,26.96,126.7,126.62,21.2442]
[1719260760869,26.96,126.7,126.62,29.1418]
[1719260761483,26.96,126.7,126.62,21.2442]
[1719260761787,26.96,126.7,126.62,29.1412]
[1719260762284,8.24077757,126.74,126.65,6.5275]
[1719260762487,26.96,126.72,126.65,6.5275]
[1719260762689,26.96,126.68,126.65,6.5275]
[1719260763200,26.96,126.68,126.62,21.5993]
[1719260765102,8.24685053,126.72,126.63,0.34]
[1719260765396,26.96,126.72,126.64,7.8961]
[1719260765683,26.96,126.72,126.65,0.34]
[1719260766062,26.96,126.74,126.66,6.4108]
[1719260766391,7.8909,126.73,126.66,6.4108]
[1719260766893,26.96,126.7,126.63,6.4301]
[1719260767598,34.8553,126.66,126.61,0.1418245]
[1719260767900,26.96,126.67,126.61,0.1418245]
[1719260768588,15.5836,126.7,126.61,0.1418245]
[1719260768790,7.8933,126.69,126.61,0.1418245]
[1719260769181,31.46,126.71,126.61,19.8873245]
[1719260769395,39.3525,126.71,126.61,27.7853245]
[1719260770200,39.3525,126.71,126.61,0.1418245]
[1719260770201,31.46,126.71,126.61,0.1418245]
[1719260770575,7.896,126.65,126.61,0.1418245]
[1719260770785,7.8953,126.66,126.61,0.1418245]
[1719260770986,7.8957,126.65,126.61,0.1418245]
[1719260771191,19.7318,126.7,126.61,0.1418245]
[1719260771406,7.8943,126.68,126.61,0.1418245]
[1719260771586,7.8947,126.67,126.61,0.1418245]
[1719260771776,7.8941,126.68,126.61,0.1418245]
[1719260772287,7.8934,126.69,126.61,0.1418245]
[1719260772695,7.894,126.68,126.61,0.1418245]
[1719260773209,37.92039212,126.71,126.63,15.0056]
[1719260773385,8.24428258,126.76,126.64,0.34]
[1719260773706,7.8903,126.74,126.64,0.34]
[1719260773910,7.8908,126.73,126.64,8.2363]
[1719260774592,7.8903,126.74,126.64,27.9771]
[1719260774797,7.8903,126.74,126.65,7.8956]
[1719260774991,7.8903,126.74,126.66,0.34]
[1719260775392,7.8897,126.75,126.66,0.34]
[1719260775905,14.61990738,126.76,126.67,6.2467]
[1719260776101,16.13318258,126.76,126.68,15.5663]
[1719260776286,7.8889,126.76,126.68,15.5663]
[1719260777594,45.65758841,126.77,126.68,15.5663]
[1719260777798,45.65758841,126.77,126.68,23.4601]
[1719260778004,6.30908841,126.77,126.69,0.34]
[1719260778300,16.13045122,126.78,126.7,6.2467]
[1719260778301,8.24275122,126.78,126.7,6.2467]
[1719260778528,31.46,126.81,126.7,6.2467]
[1719260778709,39.70089755,126.81,126.71,0.34]
[1719260779010,7.8864,126.8,126.71,0.34]
[1719260779190,8.24089755,126.81,126.71,0.34]
[1719260779387,8.24089755,126.81,126.71,8.2318]
[1719260779906,22.47099076,126.81,126.71,8.2318]
[1719260780204,14.58509076,126.81,126.72,7.8909]
[1719260780379,8.24089755,126.81,126.74,6.6359]
[1719260780583,7.8856,126.82,126.74,6.6359]
[1719260780781,7.8847,126.83,126.74,6.6359]
[1719260781276,6.34673266,126.83,126.75,8.229]
[1719260781483,8.23891708,126.84,126.75,8.229]
[1719260781684,7.8839,126.85,126.75,8.229]
[1719260782001,7.884,126.84,126.75,8.229]
[1719260782178,8.23760082,126.86,126.75,8.229]
[1719260782381,7.8837,126.85,126.75,8.229]
[1719260782589,8.23760082,126.86,126.75,0.34]
[1719260782782,8.23760082,126.86,126.74,6.6359]
[1719260782783,19.7091,126.85,126.74,6.6359]
[1719260782989,7.8879,126.78,126.74,6.6359]
[1719260783289,7.8877,126.78,126.74,6.6359]
[1719260785989,7.8903,126.74,126.71,6.2123]
[1719260786185,19.7225,126.76,126.69,15.0742]
[1719260786412,7.8908,126.73,126.69,15.0742]
[1719260786776,51.1825,126.76,126.69,15.0742]
[1719260786982,51.1825,126.76,126.67,0.1418245]
[1719260786983,19.726,126.74,126.67,0.1418245]
[1719260787182,7.8939,126.68,126.67,0.1418245]
[1719260787804,7.8933,126.69,126.67,0.1418245]
[1719260788112,7.8925,126.71,126.67,0.1418245]
[1719260788406,31.46,126.72,126.67,0.1418245]
[1719260788407,39.3516,126.72,126.67,0.1418245]
[1719260788912,7.892,126.71,126.67,0.1418245]
[1719260789289,7.8921,126.71,126.67,0.1418245]
[1719260789485,31.46,126.72,126.67,0.1418245]
[1719260789702,7.8931,126.7,126.67,0.1418245]
[1719260789902,31.46,126.72,126.67,0.1418245]
[1719260790097,7.8931,126.7,126.67,0.1418245]
[1719260790304,22.3675,126.78,126.67,0.1418245]
[1719260790610,7.8893,126.76,126.68,16.0876]
[1719260791719,15.9288,126.78,126.68,16.0876]
[1719260792020,7.8889,126.76,126.68,16.0876]
[1719260792318,7.8896,126.75,126.68,16.0876]
[1719260793529,7.8891,126.76,126.68,16.0876]
[1719260793890,7.8895,126.75,126.68,16.0876]
[1719260794196,7.8924,126.71,126.67,0.1418245]
[1719260794610,7.8916,126.72,126.67,0.1418245]
[1719260795025,0.17,126.74,126.67,0.1418245]
[1719260795206,7.8934,126.69,126.67,0.1418245]
[1719260795392,7.8928,126.7,126.67,0.1418245]
[1719260795588,0.34,126.74,126.67,0.1418245]
[1719260795589,7.8934,126.69,126.67,0.1418245]
[1719260795918,7.8939,126.68,126.67,0.1418245]
[1719260797505,15.0325,126.72,126.67,0.1418245]
[1719260797706,31.63,126.74,126.67,0.1418245]
[1719260798009,31.46,126.74,126.67,0.1418245]
[1719260799299,7.8915,126.72,126.67,0.1418245]
[1719260799920,7.8909,126.73,126.67,0.1418245]
[1719260800127,19.7275,126.73,126.67,0.1418245]
[1719260800419,7.8939,126.68,126.67,0.1418245]
[1719260800923,31.46,126.74,126.67,0.1418245]
[1719260800924,19.7255,126.74,126.67,0.1418245]
[1719260801226,31.8,126.73,126.67,0.1418245]
[1719260801400,7.8934,126.69,126.67,0.1418245]
[1719260803123,16.14046628,126.7,126.67,0.1418245]
[1719260803418,7.8933,126.69,126.67,0.1418245]
[1719260803617,16.14046628,126.7,126.67,0.1418245]
[1719260803826,8.24766628,126.7,126.67,0.1418245]
[1719260804002,7.8939,126.68,126.67,0.1418245]
[1719260805809,8.2339,126.68,126.67,0.1418245]
[1719260808610,24.0257,126.68,126.67,0.1418245]
[1719260809807,7.8969,126.64,126.58,22.1958]
[1719260810223,7.8971,126.63,126.58,22.1958]
[1719260810919,7.8965,126.64,126.58,22.1958]
[1719260812305,7.8953,126.66,126.58,22.1958]
[1719260814103,7.8959,126.65,126.58,22.1958]
[1719260814317,8.24864723,126.68,126.58,22.1958]
[1719260814608,7.8964,126.64,126.58,22.1958]
[1719260815731,7.8975,126.63,126.58,22.1958]
[1719260816055,7.898,126.62,126.58,22.1958]
[1719260816435,7.8972,126.63,126.58,22.1958]
[1719260817034,7.8977,126.62,126.58,22.1958]
[1719260817213,7.8972,126.63,126.58,22.1958]
[1719260818425,7.8977,126.62,126.58,22.1958]
[1719260819138,7.8982,126.61,126.58,22.1958]
[1719260819424,19.7383,126.66,126.58,22.1958]
[1719260819627,7.8981,126.62,126.58,22.1958]
[1719260822137,0.34,126.65,126.58,22.1958]
[1719260822138,19.7415,126.64,126.58,6.242]
[1719260822431,31.8,126.65,126.58,6.242]
[1719260822634,7.8982,126.62,126.58,6.242]
[1719260823822,8.23920458,126.64,126.58,6.242]
[1719260824017,31.46,126.65,126.58,6.242]
[1719260824215,7.8976,126.63,126.58,6.242]
[1719260824411,31.46,126.65,126.58,6.242]
[1719260824824,7.8978,126.62,126.58,6.242]
[1719260825138,7.8983,126.61,126.58,6.242]
[1719260825311,7.8977,126.62,126.58,6.242]
[1719260825724,7.8968,126.64,126.58,6.242]
[1719260825940,7.8966,126.64,126.58,6.242]
[1719260826134,7.897,126.63,126.58,6.242]
[1719260827710,8.23744755,126.67,126.59,15.3183]
[1719260828211,7.8951,126.66,126.59,15.3183]
[1719260828741,35.20744755,126.67,126.59,15.3183]
[1719260829037,7.8955,126.66,126.59,15.3183]
[1719260829418,7.8958,126.65,126.59,15.3183]
[1719260829817,7.8953,126.66,126.59,15.3183]
[1719260830235,7.8968,126.64,126.59,15.3183]
[1719260830537,7.8981,126.62,126.59,15.3183]
[1719260830739,7.8983,126.61,126.59,15.3183]
[1719260830932,7.899,126.6,126.58,6.242]
[1719260831136,7.8984,126.61,126.58,6.242]
[1719260831730,26.97,126.59,126.5,241.30606516]
[1719260831930,26.97,126.53,126.5,241.30606516]
[1719260832654,7.9022,126.55,126.5,241.30606516]
[1719260832858,7.9014,126.56,126.5,241.30606516]
[1719260833521,7.902,126.55,126.5,241.30606516]
[1719260833911,7.9015,126.56,126.5,241.30606516]
[1719260834737,7.9008,126.57,126.5,241.30606516]
[1719260835046,7.9009,126.57,126.5,241.30606516]
[1719260836059,8.24062161,126.6,126.5,241.30606516]
[1719260836338,7.9002,126.58,126.5,241.30606516]
[1719260836636,35.90381643,126.61,126.51,0.17]
[1719260836838,35.90381643,126.61,126.5,241.30606516]
[1719260836839,44.14396585,126.61,126.5,241.30606516]
[1719260837045,63.89006585,126.61,126.5,241.30606516]
[1719260837218,7.9009,126.57,126.5,241.30606516]
[1719260837641,7.9003,126.58,126.5,241.30606516]
[1719260837942,7.9038,126.53,126.5,241.30606516]
[1719260838533,7.9041,126.52,126.5,241.30606516]
[1719260838735,7.9035,126.53,126.5,241.30606516]
[1719260838941,71.0325,126.58,126.5,241.30606516]
[1719260839118,0.34,126.57,126.5,241.30606516]
[1719260839321,7.9045,126.51,126.5,241.30606516]
[1719260840814,29.7264,126.51,126.5,154.16488317]
[1719260841038,7.9126,126.39,126.37,22.3499]
[1719260841239,71.14,126.5,126.26,8.18559168]
[1719260841240,39.4396,126.43,126.33,22.8491]
[1719260841449,19.7704,126.46,126.33,22.8491]
[1719260841917,22.8491,126.44,126.33,22.8491]
[1719260842119,7.912,126.39,126.33,22.8491]
[1719260842321,0.17,126.43,126.33,22.8491]
[1719260842519,7.9125,126.39,126.28,27.7154]
[1719260842754,7.9125,126.39,126.28,22.7766]
[1719260842755,0.17,126.38,126.28,22.7766]
[1719260842924,7.9139,126.36,126.28,22.7766]
[1719260843247,0.17,126.38,126.28,22.7766]
[1719260843449,7.9159,126.33,126.28,22.7766]
[1719260843745,0.34,126.38,126.28,22.7766]
[1719260844245,7.9146,126.35,126.28,22.7766]
[1719260844450,0.34,126.38,126.28,22.7766]
[1719260844650,19.7753,126.42,126.29,22.8716]
[1719260844829,7.9108,126.41,126.31,7.9168]
[1719260845030,6.44783028,126.43,126.29,22.8716]
[1719260845233,7.9119,126.4,126.29,22.8716]
[1719260845432,7.9127,126.38,126.29,22.8716]
[1719260845628,7.9113,126.41,126.3,8.0871]
[1719260845830,22.8491,126.44,126.3,8.0871]
[1719260845831,49.14990514,126.44,126.3,0.17]
[1719260846032,31.53,126.43,126.29,22.8716]
[1719260846339,7.9115,126.4,126.29,22.8716]
[1719260846543,7.9114,126.4,126.29,30.7898]
[1719260847357,7.9124,126.39,126.29,22.8716]
[1719260847528,7.9127,126.38,126.29,22.8716]
[1719260847962,8.25193523,126.42,126.29,22.8716]
[1719260848134,7.9127,126.38,126.29,22.8716]
[1719260848456,8.25193523,126.42,126.29,50.5841]
[1719260848649,7.9118,126.4,126.3,8.0874]
[1719260849046,7.9109,126.41,126.3,0.17]
[1719260849231,7.9109,126.41,126.3,0.34]
[1719260849632,60.90640514,126.44,126.29,22.8716]
[1719260849633,100.45100514,126.44,126.29,22.8716]
[1719260849948,7.9132,126.37,126.29,22.8716]
[1719260850142,19.7759,126.42,126.29,22.8716]
[1719260850447,100.45100514,126.44,126.29,22.8716]
[1719260850750,100.45100514,126.44,126.31,22.7534]
[1719260850751,8.25226091,126.43,126.31,22.7534]
[1719260850955,7.9093,126.44,126.34,7.9149]
[1719260851137,97.2228,126.48,126.33,6.2209]
[1719260851345,42.619,126.46,126.33,6.2209]
[1719260851532,7.9106,126.42,126.33,6.2209]
[1719260851731,7.9106,126.42,126.34,0.17]
[1719260852256,7.909,126.44,126.34,0.17]
[1719260852550,7.9095,126.43,126.35,16.3624]
[1719260852957,7.909,126.44,126.35,16.3624]
[1719260853354,22.8491,126.46,126.35,16.3624]
[1719260853590,7.9075,126.47,126.37,14.0369]
[1719260853762,6.5675,126.51,126.37,6.1238]
[1719260853763,6.37945655,126.49,126.37,6.1238]
[1719260853941,7.908,126.46,126.37,6.1238]
[1719260854147,7.9083,126.45,126.37,6.1238]
[1719260854532,7.9072,126.47,126.37,14.037]
[1719260855155,19.768,126.47,126.37,6.1238]
[1719260855357,16.3624,126.48,126.37,6.1238]
[1719260855540,7.9113,126.41,126.37,6.1238]
[1719260856156,7.9102,126.42,126.37,6.1238]
[1719260856541,7.9097,126.43,126.37,6.1238]
[1719260857663,7.9095,126.43,126.37,6.1238]
[1719260858155,7.9089,126.44,126.37,6.1238]
[1719260858744,7.9096,126.43,126.37,6.1238]
[1719260858941,7.9088,126.45,126.37,6.1238]
[1719260859264,7.9078,126.46,126.37,6.1238]
[1719260859435,7.9083,126.45,126.37,6.1238]
[1719260859635,36.1294,126.48,126.37,6.1238]
[1719260860140,7.9085,126.45,126.38,15.6232]
[1719260860341,36.1294,126.48,126.38,15.6232]
[1719260860342,7.9089,126.44,126.38,15.6232]
[1719260860557,7.9085,126.45,126.38,15.6232]
[1719260860764,7.9089,126.44,126.38,15.6232]
[1719260860960,19.7698,126.46,126.38,15.6232]
[1719260861267,7.9099,126.43,126.38,15.6232]
[1719260861455,7.9104,126.42,126.38,15.6232]
[1719260861761,7.912,126.39,126.38,15.6232]
[1719260861964,31.53,126.47,126.37,6.1238]
[1719260861965,7.9126,126.38,126.37,6.1238]
[1719260862153,7.9121,126.39,126.37,6.1238]
[1719260862345,7.9115,126.4,126.37,6.1238]
[1719260862547,7.9105,126.42,126.37,6.1238]
[1719260863061,19.7719,126.45,126.37,6.1238]
[1719260863258,7.9084,126.45,126.37,6.1238]
[1719260863936,74.0519186,126.48,126.38,16.2027]
[1719260864140,7.9085,126.45,126.38,16.2027]
[1719260864337,7.9091,126.44,126.38,16.2027]
[1719260864768,82.29517433,126.48,126.38,16.2027]
[1719260865072,19.7694,126.46,126.38,16.2027]
[1719260865243,7.9103,126.42,126.38,16.2027]
[1719260865566,19.7694,126.46,126.38,16.2027]
[1719260866347,7.9102,126.42,126.38,16.2027]
[1719260867266,19.7694,126.46,126.38,16.2027]
[1719260867684,62.52797433,126.48,126.38,16.2027]
[1719260867975,7.9077,126.46,126.38,16.2027]
[1719260868269,7.9083,126.45,126.38,16.2027]
[1719260868748,7.9077,126.46,126.38,16.2027]
[1719260869183,7.9084,126.45,126.38,16.2027]
[1719260869544,7.9078,126.46,126.38,16.2027]
[1719260869969,7.9083,126.45,126.38,16.2027]
[1719260870473,7.9089,126.44,126.38,16.2027]
[1719260870659,22.7547186,126.48,126.38,16.2027]
[1719260870660,7.9095,126.43,126.38,16.2027]
[1719260870868,7.9103,126.42,126.38,16.2027]
[1719260871050,19.7679,126.47,126.38,16.2027]
[1719260871248,7.9097,126.43,126.38,16.2027]
[1719260871448,7.909,126.44,126.38,16.2027]
[1719260871960,19.7679,126.47,126.38,16.2027]
[1719260872170,22.7547186,126.48,126.38,16.2027]
[1719260872559,7.9079,126.46,126.38,16.2027]
[1719260873170,7.9072,126.47,126.38,16.2027]
[1719260873368,7.9077,126.46,126.38,16.2027]
[1719260873667,22.7547186,126.48,126.38,16.2027]
[1719260874174,42.5220186,126.48,126.38,16.2027]
[1719260874366,7.9084,126.45,126.38,16.2027]
[1719260874567,7.9078,126.46,126.38,16.2027]
[1719260874762,8.24612599,126.51,126.41,6.0686]
[1719260874969,8.24612599,126.51,126.37,0.34]
[1719260874970,8.24612599,126.51,126.42,22.6376]
[1719260875278,16.2027,126.53,126.42,22.6376]
[1719260875576,39.5121,126.55,126.42,22.6376]
[1719260875773,62.1497,126.55,126.42,22.6376]
[1719260875956,19.7579,126.54,126.42,22.6376]
[1719260876274,7.9036,126.53,126.44,21.4043]
[1719260876478,26.18497554,126.55,126.44,29.3131]
[1719260876676,7.9028,126.54,126.46,21.4043]
[1719260876860,21.4043,126.57,126.46,21.4043]
[1719260876861,7.9036,126.53,126.46,21.4043]
[1719260877060,7.9039,126.52,126.46,21.4043]
[1719260877380,7.9034,126.53,126.46,21.4043]
[1719260878171,7.904,126.52,126.46,21.4043]
[1719260879266,7.903,126.54,126.46,21.4043]
[1719260879572,27.74767462,126.57,126.46,21.4043]
[1719260879573,7.9022,126.55,126.46,21.4043]
[1719260880078,7.9022,126.55,126.47,0.17]
[1719260880454,6.34337462,126.57,126.46,21.4043]
[1719260880659,19.7523,126.57,126.46,21.4043]
[1719260881160,7.9024,126.55,126.47,0.17]
[1719260881370,7.9015,126.56,126.47,0.17]
[1719260881676,21.4043,126.58,126.47,0.17]
[1719260882061,7.902,126.55,126.47,0.17]
[1719260882262,39.5051,126.57,126.46,21.4043]
[1719260882460,7.9055,126.5,126.46,21.4043]
[1719260883085,19.7638,126.5,126.46,21.4043]
[1719260883263,7.907,126.47,126.46,21.4043]
[1719260883604,7.9065,126.48,126.46,21.4043]
[1719260883964,7.9058,126.49,126.46,21.4043]
[1719260884165,7.9053,126.5,126.46,21.4043]
[1719260885487,7.9059,126.49,126.46,21.4043]
[1719260885700,19.7615,126.51,126.38,21.7768]
[1719260885864,19.7645,126.49,126.38,21.7768]
[1719260886063,7.9083,126.45,126.38,21.7768]
[1719260886391,7.9078,126.46,126.38,21.7768]
[1719260886962,51.291,126.52,126.38,21.7768]
[1719260887282,31.53,126.52,126.38,21.7768]
[1719260887591,7.9069,126.48,126.38,29.689]
[1719260887774,7.907,126.47,126.39,0.34]
[1719260887968,39.77395163,126.52,126.4,21.1195]
[1719260888285,31.53,126.52,126.4,21.1195]
[1719260888468,7.9074,126.47,126.4,21.1195]
[1719260888794,19.7681,126.47,126.4,21.1195]
[1719260888980,7.9107,126.41,126.4,21.1195]
[1719260889163,7.9107,126.41,126.4,13.35752579]
[1719260889491,29.9857,126.48,126.33,7.9153]
[1719260889492,7.9095,126.43,126.33,7.9153]
[1719260890161,19.937,126.48,126.35,7.914]
[1719260890367,19.937,126.48,126.34,19.7872]
[1719260890587,7.9084,126.45,126.35,8.2543]
[1719260891174,7.9095,126.43,126.35,0.17]
[1719260891488,7.9095,126.43,126.34,19.7872]
[1719260892288,7.9102,126.42,126.35,21.1532]
[1719260892483,19.937,126.48,126.35,21.1532]
[1719260892484,19.7695,126.46,126.35,21.1532]
[1719260892691,7.9108,126.41,126.35,21.1532]
[1719260892891,7.9114,126.4,126.35,21.1532]
[1719260893067,7.9109,126.41,126.35,21.1532]
[1719260893269,7.9103,126.42,126.35,21.1532]
[1719260893468,7.9108,126.41,126.35,21.1532]
[1719260894294,7.9103,126.42,126.35,21.1532]
[1719260894885,26.21404639,126.48,126.36,7.9138]
[1719260895193,26.21404639,126.48,126.37,0.17]
[1719260895395,26.21404639,126.48,126.36,0.34]
[1719260895886,19.7697,126.46,126.35,21.1532]
[1719260896468,7.9097,126.43,126.35,21.1532]
[1719260897883,45.98164639,126.48,126.35,21.1532]
[1719260898091,6.44744639,126.48,126.35,21.1532]
[1719260898395,31.53,126.46,126.35,21.1532]
[1719260898584,0.17,126.45,126.35,21.1532]
[1719260898773,19.7757,126.42,126.35,21.1532]
[1719260898972,7.9127,126.38,126.35,21.1532]
[1719260899189,19.7757,126.42,126.35,21.1532]
[1719260899390,7.9122,126.39,126.35,21.1532]
[1719260900682,7.9125,126.39,126.35,21.1532]
[1719260900883,7.9122,126.39,126.35,21.1532]
[1719260901085,19.7757,126.42,126.35,21.1532]
[1719260901282,7.9106,126.42,126.35,21.1532]
[1719260901599,28.01133022,126.45,126.35,21.1532]
[1719260901600,7.9097,126.43,126.35,21.1532]
[1719260901778,7.9101,126.42,126.35,21.1532]
[1719260902181,7.911,126.41,126.35,21.1532]
[1719260902497,19.7727,126.44,126.35,21.1532]
[1719260902689,7.9118,126.4,126.35,21.1532]
[1719260903175,19.7758,126.42,126.35,21.1532]
[1719260903678,7.9115,126.4,126.35,21.1532]
[1719260904271,7.9127,126.38,126.35,21.1532]
[1719260904871,37.5563,126.42,126.32,22.5809]
[1719260905075,0.34,126.41,126.32,22.5809]
[1719260905276,7.9155,126.34,126.32,22.5809]
[1719260905673,19.782,126.38,126.32,22.5809]
[1719260905891,7.9141,126.36,126.32,22.5809]
[1719260906137,19.782,126.38,126.32,22.5809]
[1719260906313,19.785,126.36,126.29,21.659]
[1719260906791,7.9163,126.33,126.29,21.659]
[1719260906976,7.9164,126.32,126.29,21.659]
[1719260907178,51.315,126.36,126.29,21.659]
[1719260907408,7.9171,126.31,126.29,21.659]
[1719260907592,7.9166,126.32,126.29,21.659]
[1719260908093,7.9178,126.3,126.25,21.659]
[1719260908288,0.17,126.35,126.25,21.659]
[1719260908289,7.9198,126.27,126.25,21.659]
[1719260908493,19.7919,126.32,126.25,21.659]
[1719260908697,7.9197,126.27,126.25,21.659]
[1719260909211,8.2244849,126.32,126.25,21.659]
[1719260909505,31.53,126.33,126.25,21.659]
[1719260909703,75.9703,126.35,126.25,21.659]
[1719260909704,19.7873,126.35,126.25,21.659]
[1719260909879,7.9172,126.31,126.25,21.659]
[1719260910080,7.9164,126.32,126.25,21.659]
[1719260910782,8.21939977,126.35,126.25,21.659]
[1719260911121,7.915,126.35,126.25,29.5794]
[1719260911802,7.915,126.35,126.24,19.9726]
[1719260911803,6.33380987,126.36,126.26,41.4587]
[1719260912024,7.9126,126.38,126.29,7.9182]
[1719260912308,7.9114,126.4,126.31,23.5369]
[1719260912508,7.9121,126.39,126.31,15.6201]
[1719260913089,6.521849,126.41,126.31,15.6201]
[1719260913297,19.779,126.4,126.31,15.6201]
[1719260913484,14.61551559,126.42,126.31,15.6201]
[1719260913693,7.9118,126.4,126.31,15.6201]
[1719260913895,7.9114,126.4,126.32,6.0389]
[1719260914200,7.9127,126.38,126.32,6.0389]
[1719260914595,7.9132,126.37,126.32,6.0389]
[1719260915113,7.9128,126.38,126.32,6.0389]
[1719260915618,14.61551559,126.42,126.32,6.0389]
[1719260915619,7.9145,126.35,126.32,6.0389]
[1719260915796,23.72,126.41,126.32,6.0389]
[1719260915797,43.5003,126.39,126.32,6.0389]
[1719260915994,7.9178,126.3,126.28,6.2899]
[1719260916684,7.917,126.31,126.28,6.2899]
[1719260917305,7.9185,126.29,126.27,15.2278]
[1719260917516,7.9184,126.29,126.25,6.2899]
[1719260917717,7.9172,126.31,126.25,6.2899]
[1719260918123,19.7901,126.33,126.25,6.2899]
[1719260918412,7.9184,126.29,126.25,6.2899]
[1719260918611,7.9189,126.28,126.25,6.2899]
[1719260918792,7.9184,126.29,126.25,6.2899]
[1719260919216,19.7901,126.33,126.25,6.2899]
[1719260919217,7.9189,126.28,126.25,6.2899]
[1719260919392,31.53,126.28,126.18,16.6444]
[1719260919594,7.9225,126.23,126.18,16.6444]
[1719260919823,19.801,126.26,126.18,16.6444]
[1719260919824,7.9228,126.22,126.18,16.6444]
[1719260919992,7.9216,126.24,126.18,16.6444]
[1719260920416,7.9209,126.25,126.18,16.6444]
[1719260921005,7.9215,126.24,126.18,16.6444]
[1719260921406,7.9222,126.23,126.18,16.6444]
[1719260921704,19.7997,126.27,126.18,16.6444]
[1719260921921,0.34,126.26,126.18,16.6444]
[1719260922099,7.9231,126.22,126.18,16.6444]
[1719260922301,7.9244,126.2,126.15,6.5693]
[1719260922695,7.9233,126.21,126.15,6.5693]
[1719260922895,7.9244,126.2,126.15,6.5693]
[1719260923110,7.9237,126.21,126.15,6.5693]
[1719260923316,0.17,126.23,126.15,6.5693]
[1719260923524,31.53,126.22,126.15,6.5693]
[1719260923911,0.17,126.24,126.15,6.5693]
[1719260924101,7.9227,126.22,126.15,6.5693]
[1719260924899,39.76038886,126.25,126.15,6.5693]
[1719260925313,7.922,126.23,126.15,6.5693]
[1719260925504,7.9226,126.22,126.15,6.5693]